bitfinex-derivatives/quotes_SOLF0:USTF0_20260107
["timestamp","ask_amount","ask_price","bid_price","bid_amount"]
[1767823233411,0.31478014,136.2,136.14,6.6172]
[1767823233611,6.03236767,136.19,136.14,6.6172]
[1767823233811,6.03236767,136.18,136.14,6.6172]
[1767823234013,0.31478014,136.2,136.14,6.6172]
[1767823234213,6.35043478,136.19,136.14,6.6172]
[1767823234402,6.03238368,136.18,136.14,6.6172]
[1767823234609,6.03238368,136.18,136.1,189.7804]
[1767823234610,0.3180511,136.17,136.12,6.6179]
[1767823234815,6.03383836,136.16,136.12,6.6179]
[1767823235114,6.03383836,136.15,136.12,6.6179]
[1767823235314,0.3180511,136.17,136.12,6.6179]
[1767823235514,0.3180511,136.15,136.1,6.6187]
[1767823235720,6.03813848,136.14,136.07,0.32667073]
[1767823235910,6.03813848,136.13,136.07,0.32667073]
[1767823236212,0.3180511,136.15,136.09,6.6194]
[1767823236413,6.0389161,136.14,136.09,6.6194]
[1767823236714,6.0389161,136.13,136.09,6.6194]
[1767823236912,0.3180511,136.15,136.09,6.6194]
[1767823237107,6.03893192,136.14,136.09,6.6194]
[1767823237313,6.03893192,136.13,136.09,6.6194]
[1767823237615,0.3180511,136.15,136.09,6.6194]
[1767823237816,6.03932756,136.14,136.09,6.6194]
[1767823238010,6.03932756,136.13,136.09,6.6194]
[1767823238316,0.3180511,136.15,136.08,0.32667073]
[1767823238516,0.3180511,136.13,136.08,0.32667073]
[1767823238717,6.03995624,136.12,136.08,0.32667073]
[1767823238921,6.03903024,136.11,136.07,6.6206]
[1767823239116,0.3180511,136.13,136.07,6.6206]
[1767823239305,6.03901187,136.12,136.07,6.6206]
[1767823239511,6.03901187,136.11,136.07,6.6206]
[1767823239707,6.9348511,136.15,136.08,0.32667073]
[1767823239910,6.03902807,136.14,136.08,0.32667073]
[1767823240115,6.03902807,136.13,136.08,0.32667073]
[1767823240310,6.03902807,136.12,136.08,0.32667073]
[1767823240514,6.03902807,136.11,136.08,0.32667073]
[1767823240716,6.9348511,136.15,136.08,6.94677073]
[1767823240914,6.0394904,136.14,136.08,6.94677073]
[1767823241221,6.0394904,136.13,136.08,6.94677073]
[1767823241419,6.0394904,136.12,136.08,6.94677073]
[1767823241717,6.0394904,136.11,136.08,6.94677073]
[1767823241920,6.9348511,136.15,136.08,6.94677073]
[1767823242113,6.04031425,136.14,136.08,6.94677073]
[1767823242313,6.04031425,136.13,136.08,6.94677073]
[1767823242620,6.04031425,136.12,136.08,6.94677073]
[1767823242820,6.04031425,136.11,136.08,6.94677073]
[1767823243021,0.3180511,136.14,136.08,6.94677073]
[1767823243321,6.04152669,136.13,136.08,6.94677073]
[1767823243516,6.04152669,136.12,136.08,6.94677073]
[1767823243815,6.04152669,136.11,136.08,6.94677073]
[1767823244013,0.3180511,136.14,136.08,6.94677073]
[1767823244213,6.04316034,136.13,136.08,6.94677073]
[1767823244414,6.04316034,136.12,136.08,6.94677073]
[1767823244616,6.04316034,136.11,136.08,6.94677073]
[1767823244923,6.04316034,136.1,136.08,6.94677073]
[1767823245110,0.3180511,136.14,136.08,6.94677073]
[1767823245314,6.04529068,136.13,136.08,6.94677073]
[1767823245514,6.04529068,136.12,136.08,6.94677073]
[1767823245721,6.04529068,136.11,136.08,6.94677073]
[1767823245923,0.3180511,136.14,136.08,6.94677073]
[1767823246124,6.04453317,136.13,136.08,6.94677073]
[1767823246325,6.04453317,136.12,136.08,6.94677073]
[1767823246525,6.04453317,136.11,136.08,6.94677073]
[1767823246823,0.3180511,136.14,136.08,6.94677073]
[1767823247124,6.04457268,136.13,136.08,6.94677073]
[1767823247323,6.04457268,136.12,136.08,6.94677073]
[1767823247526,6.04457268,136.11,136.08,6.94677073]
[1767823247824,0.3180511,136.14,136.08,6.94677073]
[1767823248024,6.04372758,136.13,136.08,6.94677073]
[1767823248225,6.04372758,136.12,136.08,6.94677073]
[1767823248426,6.04372758,136.11,136.08,6.94677073]
[1767823248628,0.3180511,136.14,136.08,6.94677073]
[1767823248827,6.04257241,136.13,136.08,6.94677073]
[1767823249028,6.04257241,136.12,136.08,6.94677073]
[1767823249326,6.04257241,136.11,136.08,6.94677073]
[1767823249522,0.3180511,136.14,136.08,6.94677073]
[1767823249726,6.04174344,136.13,136.08,6.94677073]
[1767823249914,6.04174344,136.12,136.08,6.94677073]
[1767823250117,6.04174344,136.11,136.08,6.94677073]
[1767823250314,0.3180511,136.14,136.08,6.94677073]
[1767823250526,6.04261543,136.13,136.08,6.94677073]
[1767823250721,6.04261543,136.12,136.08,6.94677073]
[1767823250922,6.04261543,136.11,136.08,6.94677073]
[1767823251125,0.3180511,136.14,136.08,6.94677073]
[1767823251325,6.04287499,136.13,136.08,6.94677073]
[1767823251623,6.04287499,136.12,136.08,6.94677073]
[1767823251830,6.04287499,136.11,136.08,6.94677073]
[1767823252021,0.3180511,136.14,136.08,6.94677073]
[1767823252323,6.04239413,136.13,136.08,6.94677073]
[1767823252523,6.04239413,136.12,136.08,6.6201]
[1767823252723,6.04239413,136.11,136.08,6.6201]
[1767823252923,0.3180511,136.13,136.08,6.6201]
[1767823253123,6.04211901,136.12,136.08,6.6201]
[1767823253324,6.04211901,136.11,136.08,6.6201]
[1767823253523,3.36448961,136.16,136.04,0.32667073]
[1767823253524,6.37825932,136.1,136.04,0.32667073]
[1767823253729,0.3180511,136.1,136.04,0.32667073]
[1767823254425,6.0583134,136.09,136.04,0.32667073]
[1767823254628,0.3180511,136.1,136.05,6.6216]
[1767823254834,6.05903857,136.09,136.05,6.6216]
[1767823255130,0.3180511,136.1,136.05,6.6216]
[1767823255331,6.05903862,136.09,136.06,6.6211]
[1767823255530,0.3180511,136.1,136.06,6.6211]
[1767823255731,6.05763293,136.09,136.06,6.6211]
[1767823255930,0.3180511,136.1,136.06,6.6211]
[1767823256126,6.05763293,136.09,136.06,6.6211]
[1767823256333,0.3180511,136.1,136.06,6.6211]
[1767823256631,6.05652548,136.09,136.06,6.6211]
[1767823256831,0.3180511,136.1,136.06,6.6211]
[1767823257033,6.05653722,136.09,136.06,6.6211]
[1767823257333,0.3180511,136.1,136.06,6.6211]
[1767823257629,6.05546892,136.09,136.06,6.6211]
[1767823257830,0.3180511,136.1,136.06,6.6211]
[1767823258031,6.05546892,136.09,136.06,6.6211]
[1767823258231,0.3180511,136.1,136.06,6.6211]
[1767823258631,6.0543082,136.09,136.06,6.6211]
[1767823258821,0.3180511,136.1,136.06,6.6211]
[1767823259025,6.0543082,136.09,136.06,6.6211]
[1767823259333,0.3180511,136.1,136.06,6.6211]
[1767823260030,0.3180511,136.1,136.04,6.94837073]
[1767823260625,0.3180511,136.1,136.04,0.32667073]
[1767823260922,0.3180511,136.1,136.05,6.6216]
[1767823267344,6.05040875,136.09,136.05,6.6216]
[1767823267641,0.3180511,136.1,136.05,6.6216]
[1767823267841,6.05002551,136.09,136.05,6.6216]
[1767823268043,0.3180511,136.1,136.05,6.6216]
[1767823268233,6.04962452,136.09,136.05,6.6216]
[1767823268434,0.3180511,136.1,136.05,6.6216]
[1767823268735,6.05142471,136.09,136.05,6.6216]
[1767823268937,0.3180511,136.1,136.05,6.6216]
[1767823269137,6.05142471,136.09,136.05,6.6216]
[1767823269336,0.3180511,136.1,136.05,6.6216]
[1767823269536,6.05306686,136.09,136.05,6.6216]
[1767823269835,0.3180511,136.1,136.05,6.6216]
[1767823270032,6.05308084,136.09,136.05,6.6216]
[1767823270235,0.3180511,136.1,136.05,6.6216]
[1767823270431,6.05501708,136.09,136.05,6.6216]
[1767823270635,0.3180511,136.1,136.05,6.6216]
[1767823270837,6.05501708,136.09,136.05,6.6216]
[1767823271134,0.3180511,136.1,136.05,6.6216]
[1767823271334,6.05625253,136.09,136.05,6.6216]
[1767823271535,0.3180511,136.1,136.05,6.6216]
[1767823271738,6.05632363,136.09,136.05,6.6216]
[1767823271938,0.3180511,136.1,136.05,6.6216]
[1767823272140,6.05667224,136.09,136.05,6.6216]
[1767823272339,0.3180511,136.1,136.04,6.94877073]
[1767823272539,0.32891002,136.08,136.02,0.30675256]
[1767823272742,0.32891002,136.08,136.0,0.30675256]
[1767823273045,0.32891002,136.08,136.03,0.30675256]
[1767823273550,0.32891002,136.1,136.03,0.30675256]
[1767823273846,6.3870244,136.09,136.03,0.30675256]
[1767823274047,6.05811438,136.08,136.03,0.30675256]
[1767823275357,12.67841438,136.08,136.03,0.30675256]
[1767823275554,6.05811438,136.07,136.03,0.30675256]
[1767823276950,12.67911438,136.07,136.0,0.30675256]
[1767823277150,6.621,136.07,136.0,0.30675256]
[1767823277351,6.06552754,136.06,136.0,0.30675256]
[1767823277547,6.621,136.07,136.01,0.30675256]
[1767823277756,6.06534662,136.06,136.01,0.30675256]
[1767823277956,6.621,136.07,136.01,0.30675256]
[1767823278359,6.6226,136.03,135.99,9.11593351]
[1767823278545,6.6226,136.03,135.97,0.30675256]
[1767823278751,0.32891002,136.08,135.97,0.30675256]
[1767823278959,6.39703903,136.07,135.98,0.30675256]
[1767823279150,6.06812901,136.06,135.98,0.30675256]
[1767823279456,6.06812901,136.05,135.98,0.30675256]
[1767823279656,6.06812901,136.04,136.0,6.93085256]
[1767823279855,6.6212,136.06,136.01,0.30675256]
[1767823280053,6.06981305,136.05,136.01,0.30675256]
[1767823280252,6.06981305,136.04,136.01,0.30675256]
[1767823280444,6.6212,136.06,136.01,0.30675256]
[1767823280646,6.06978253,136.05,136.01,0.30675256]
[1767823280844,6.06978253,136.04,136.01,0.30675256]
[1767823281049,6.6212,136.06,136.01,0.30675256]
[1767823281251,6.06883891,136.05,136.01,0.30675256]
[1767823281452,6.06883891,136.04,136.01,0.30675256]
[1767823281653,6.06883891,136.03,136.01,0.30675256]
[1767823281852,6.6212,136.06,136.01,0.30675256]
[1767823282049,6.06747875,136.05,136.01,0.30675256]
[1767823282261,6.06747875,136.04,136.01,0.30675256]
[1767823282463,6.6212,136.06,136.01,0.30675256]
[1767823282653,0.32891002,136.07,136.01,0.30675256]
[1767823283757,6.95011002,136.06,136.01,0.30675256]
[1767823284062,0.32891002,136.06,136.01,0.30675256]
[1767823287075,93.82891002,136.09,136.01,2.46435885]
[1767823287266,93.82891002,136.09,136.02,0.30675256]
[1767823287761,0.32891002,136.08,136.02,0.30675256]
[1767823288564,0.32891002,136.08,136.02,6.92975256]
[1767823291972,0.32891002,136.08,136.03,6.93229591]
[1767823292571,0.32891002,136.08,136.03,0.30969591]
[1767823292770,0.32891002,136.08,136.02,0.30969591]
[1767823293271,0.30866267,136.07,136.0,6.93379591]
[1767823294463,6.09941503,136.06,136.0,6.93379591]
[1767823294773,6.09941503,136.05,136.0,6.93379591]
[1767823294968,6.09941503,136.04,136.0,0.30969591]
[1767823295277,6.09941503,136.03,136.0,0.30969591]
[1767823295571,0.30866267,136.06,136.0,0.30969591]
[1767823295772,6.09917485,136.05,136.0,0.30969591]
[1767823295974,6.40783752,136.04,135.98,0.30969591]
[1767823296179,6.40783752,136.03,135.98,0.30969591]
[1767823296366,6.09917485,136.02,135.98,0.30969591]
[1767823296566,0.30866267,136.03,135.98,0.30969591]
[1767823296766,6.09793352,136.02,135.98,0.30969591]
[1767823296974,6.09793352,136.01,135.98,0.30969591]
[1767823297275,0.30866267,136.03,135.98,0.30969591]
[1767823297574,6.09729165,136.02,135.98,0.30969591]
[1767823297875,6.09729165,136.01,135.98,0.30969591]
[1767823298172,6.93136267,136.03,135.98,0.30969591]
[1767823298374,6.09674963,136.02,135.98,0.30969591]
[1767823298573,6.09674963,136.01,135.98,0.30969591]
[1767823298775,6.93136267,136.03,135.98,0.30969591]
[1767823298976,6.40538847,136.02,135.96,0.30969591]
[1767823299274,6.0967258,136.01,135.96,6.93569591]
[1767823299478,0.30866267,136.02,135.97,0.30969591]
[1767823299675,6.40394116,136.01,135.95,0.30969591]
[1767823299871,0.30866267,136.01,135.95,0.30969591]
[1767823300574,6.93226267,136.01,135.95,0.30969591]
[1767823300775,0.30866267,136.01,135.95,0.30969591]
[1767823302178,6.93226267,136.01,135.95,6.93619591]
[1767823302377,6.09194756,136.0,135.95,6.93619591]
[1767823302580,6.93226267,136.01,135.95,6.93619591]
[1767823302769,6.09194756,136.0,135.95,6.93619591]
[1767823302969,6.93226267,136.01,135.95,6.93619591]
[1767823303170,0.30866267,136.01,135.95,6.93619591]
[1767823306773,0.30866267,136.01,135.96,6.93569591]
[1767823309177,6.93156267,136.03,135.97,6.6254]
[1767823309382,6.08917752,136.02,135.98,0.30969591]
[1767823309581,0.30866267,136.04,135.98,0.30969591]
[1767823309784,6.0890275,136.03,135.98,0.30969591]
[1767823309983,6.0890275,136.02,135.98,0.30969591]
[1767823310286,6.93106267,136.04,135.98,6.93479591]
[1767823310586,6.08966095,136.03,135.98,6.93479591]
[1767823310776,6.08966095,136.02,135.98,6.93479591]
[1767823310979,6.93106267,136.04,135.98,6.93479591]
[1767823311177,6.0896446,136.03,135.98,6.93479591]
[1767823311383,6.0896446,136.02,135.98,6.93479591]
[1767823311583,6.93106267,136.04,135.98,6.93479591]
[1767823311783,6.09023091,136.03,135.98,6.93479591]
[1767823311985,6.09023091,136.02,135.98,6.93479591]
[1767823312285,6.09023091,136.01,135.98,6.93479591]
[1767823312485,6.93106267,136.04,135.98,6.93479591]
[1767823312684,0.30866267,136.02,135.96,6.6258]
[1767823312889,6.09100069,136.01,135.96,6.6258]
[1767823313076,0.30866267,136.02,135.96,6.6258]
[1767823313281,6.09152713,136.01,135.96,6.6258]
[1767823313491,0.30866267,136.02,135.96,6.6258]
[1767823313685,6.09074886,136.01,135.96,6.93549591]
[1767823313886,0.30866267,136.02,135.96,6.93549591]
[1767823314084,6.09029823,136.01,135.96,6.93549591]
[1767823314286,6.09029823,136.0,135.96,6.93549591]
[1767823314487,0.30866267,136.02,135.96,6.93549591]
[1767823314687,6.09071738,136.01,135.96,6.93549591]
[1767823314884,6.09071738,136.0,135.96,6.93549591]
[1767823315086,0.30866267,136.02,135.96,6.93549591]
[1767823315389,6.09071744,136.01,135.96,6.93549591]
[1767823315689,6.09071744,136.0,135.96,6.93549591]
[1767823315887,0.30866267,136.02,135.96,6.93549591]
[1767823316090,6.09246618,136.01,135.97,6.6255]
[1767823316288,6.09246618,136.0,135.97,6.6255]
[1767823316490,0.30866267,136.02,135.97,6.6255]
[1767823316683,6.09314194,136.01,135.97,6.6255]
[1767823316886,6.09314194,136.0,135.97,6.6255]
[1767823317094,0.30866267,136.02,135.97,6.6255]
[1767823317294,6.09448439,136.01,135.97,6.6255]
[1767823317495,8.439e-05,136.0,135.98,6.93469591]
[1767823317685,9.08846896,136.04,135.98,6.93469591]
[1767823317992,0.30866267,136.03,135.98,6.93469591]
[1767823318786,0.30866267,136.03,135.98,0.30969591]
[1767823319594,6.93126267,136.03,135.98,0.30969591]
[1767823321097,6.93126267,136.03,135.97,6.6253]
[1767823322002,0.3058275,136.01,135.95,6.6262]
[1767823322205,0.3058275,136.01,135.94,0.30533073]
[1767823322499,6.9294275,136.01,135.94,6.93223073]
[1767823322698,0.3058275,136.0,135.94,6.93223073]
[1767823323706,0.3058275,136.0,135.95,6.6264]
[1767823325604,0.3058275,136.0,135.94,0.30533073]
[1767823326308,6.9300275,136.0,135.94,0.30533073]
[1767823326506,0.3058275,136.0,135.94,0.30533073]
[1767823327305,2.46343379,136.0,135.94,0.30533073]
[1767823327602,2.46343379,136.0,135.94,6.93233073]
[1767823328108,9.08773379,136.0,135.94,6.93233073]
[1767823328607,0.32799953,135.99,135.94,6.93233073]
[1767823329610,0.32799953,135.97,135.91,9.11593351]
[1767823329809,0.32799953,135.97,135.85,22.09]
[1767823329810,0.32799953,135.95,135.88,9.42078011]
[1767823329999,8.50280946,135.94,135.88,0.3048466]
[1767823330200,6.46238336,135.93,135.88,0.3048466]
[1767823330401,6.46238336,135.92,135.88,0.3048466]
[1767823330706,2.48560582,135.94,135.88,0.3048466]
[1767823330898,6.46238087,135.93,135.88,0.3048466]
[1767823331099,6.46238087,135.92,135.88,0.3048466]
[1767823331295,0.32799953,135.93,135.88,0.3048466]
[1767823331500,6.4592349,135.92,135.89,6.6294]
[1767823331700,0.32799953,135.93,135.89,6.6294]
[1767823331995,6.4592479,135.92,135.89,6.6294]
[1767823332198,0.32799953,135.93,135.89,6.6294]
[1767823333203,0.32799953,135.95,135.9,6.629]
[1767823333505,9.377e-05,135.94,135.9,0.3048466]
[1767823333807,87.26799953,135.97,135.9,0.3048466]
[1767823333808,0.32799953,135.97,135.9,0.3048466]
[1767823334708,0.32799953,135.97,135.93,6.6275]
[1767823334895,6.6245,136.0,135.91,0.3048466]
[1767823335207,0.32799953,135.99,135.92,2.46245289]
[1767823335406,0.32799953,135.99,135.93,0.3048466]
[1767823335901,0.32799953,136.01,135.96,6.626]
[1767823336210,87.26799953,136.03,135.95,0.3048466]
[1767823337209,0.32799953,136.06,136.0,0.3048466]
[1767823337912,86.94,136.07,136.02,6.623]
[1767823340217,86.94,136.07,136.0,6.9286466]
[1767823340918,86.94,136.07,136.01,6.6235]
[1767823342110,86.94,136.07,136.01,6.9283466]
[1767823344012,86.94,136.07,136.02,6.623]
[1767823344212,87.26799953,136.07,136.02,6.623]
[1767823345519,6.37255223,136.06,136.02,6.623]
[1767823345813,6.37255223,136.05,136.02,6.623]
[1767823346118,87.26799953,136.07,136.02,6.623]
[1767823346317,6.37121578,136.06,136.02,6.623]
[1767823346518,6.37121578,136.05,136.02,6.623]
[1767823346721,87.26799953,136.07,136.02,6.623]
[1767823346915,6.37085086,136.06,136.02,6.623]
[1767823347122,6.37085086,136.05,136.02,6.623]
[1767823347420,87.26799953,136.07,136.02,6.623]
[1767823347720,6.36960034,136.06,136.02,6.623]
[1767823347913,6.36960034,136.05,136.02,6.623]
[1767823348110,87.26799953,136.07,136.02,6.623]
[1767823348316,6.36969925,136.06,136.02,6.623]
[1767823348515,6.36969925,136.05,136.02,6.623]
[1767823348717,87.26799953,136.07,136.02,6.623]
[1767823348917,6.36923624,136.06,136.02,6.623]
[1767823349118,6.36923624,136.05,136.02,6.623]
[1767823349318,87.26799953,136.07,136.02,6.623]
[1767823349524,6.36834788,136.06,136.02,6.623]
[1767823349721,6.36834788,136.05,136.02,6.623]
[1767823350023,87.26799953,136.07,136.02,6.623]
[1767823350222,6.36808194,136.06,136.02,6.623]
[1767823350424,6.36808194,136.05,136.02,6.623]
[1767823350725,6.36685804,136.04,136.0,6.6237]
[1767823350921,6.36685804,136.03,136.0,6.6237]
[1767823351123,0.32799953,136.06,136.0,6.6237]
[1767823351324,0.32799953,136.04,136.0,6.6237]
[1767823351523,6.36606293,136.03,136.0,6.6237]
[1767823351723,0.32799953,136.04,136.0,6.6237]
[1767823351929,6.36532328,136.03,136.0,6.6237]
[1767823352130,0.32799953,136.04,136.0,6.6237]
[1767823352323,6.36524361,136.03,136.0,6.6237]
[1767823352631,0.32799953,136.04,136.0,6.6237]
[1767823352820,6.36541855,136.03,136.0,6.6237]
[1767823353018,0.32799953,136.04,136.0,6.6237]
[1767823353224,6.36580341,136.03,136.0,6.6237]
[1767823353528,0.32799953,136.04,136.0,6.6237]
[1767823353834,6.36522337,136.03,136.0,6.6237]
[1767823354038,0.32799953,136.04,136.0,6.6237]
[1767823354230,6.36562223,136.03,136.0,6.6237]
[1767823354539,0.32799953,136.04,136.0,6.6237]
[1767823354836,6.36502106,136.03,136.0,6.6237]
[1767823355038,0.32799953,136.04,136.0,6.6237]
[1767823355237,6.36540384,136.03,136.0,6.6237]
[1767823355438,3.3704942,136.1,136.0,0.32129307]
[1767823355737,93.28482683,136.09,136.0,0.32129307]
[1767823355937,6.36482683,136.08,136.0,0.32129307]
[1767823356131,6.36482683,136.07,136.0,0.32129307]
[1767823356330,6.36482683,136.06,136.0,0.32129307]
[1767823356640,6.36482683,136.05,136.01,6.6233]
[1767823356842,6.36482683,136.04,136.0,0.32129307]
[1767823357033,6.36482683,136.03,136.0,0.32129307]
[1767823357235,6.6207,136.07,136.0,0.32129307]
[1767823357536,6.69057309,136.06,136.0,0.32129307]
[1767823357738,6.36434574,136.05,136.0,0.32129307]
[1767823357939,6.36434574,136.04,136.0,0.32129307]
[1767823358125,6.36434574,136.03,136.0,0.32129307]
[1767823358329,0.32622735,136.06,136.0,0.32129307]
[1767823358529,6.36462504,136.05,136.0,6.94539307]
[1767823358737,6.36462504,136.04,136.0,6.94539307]
[1767823358939,6.36462504,136.03,136.0,6.94539307]
[1767823359240,0.32622735,136.06,136.0,6.94539307]
[1767823359439,6.36534631,136.05,136.0,6.94539307]
[1767823359640,6.36534631,136.04,136.0,6.94539307]
[1767823359940,6.36534631,136.03,136.0,6.94539307]
[1767823360244,0.32622735,136.06,136.0,6.94539307]
[1767823360538,6.36560952,136.05,136.0,6.94539307]
[1767823360725,6.36560952,136.04,136.0,6.94539307]
[1767823360926,0.32622735,136.02,135.93,0.32129307]
[1767823361130,6.36560952,136.01,135.93,0.32129307]
[1767823361336,6.36560952,136.0,135.94,0.32129307]
[1767823361538,87.24622735,136.04,135.95,0.32129307]
[1767823362136,0.32622735,136.03,135.97,0.32129307]
[1767823363740,6.94912735,136.03,135.97,0.32129307]
[1767823370040,0.32622735,136.02,135.97,0.32129307]
[1767823372446,6.94942735,136.02,135.97,0.32129307]
[1767823373143,0.32622735,136.02,135.97,0.32129307]
[1767823373546,6.27874441,136.01,135.97,0.32129307]
[1767823373737,6.27874441,136.0,135.97,0.32129307]
[1767823373942,0.32622735,136.02,135.97,0.32129307]
[1767823374147,6.2755411,136.01,135.97,0.32129307]
[1767823374341,6.2755411,136.0,135.97,0.32129307]
[1767823374546,0.32622735,136.02,135.95,6.94749307]
[1767823374745,6.27561333,136.01,135.95,6.94749307]
[1767823374945,6.27561333,136.0,135.95,6.94749307]
[1767823375147,0.32622735,136.02,135.96,0.32129307]
[1767823375346,6.27868667,136.01,135.96,0.32129307]
[1767823375546,6.27868667,136.0,135.96,0.32129307]
[1767823375749,0.32622735,136.02,135.96,0.32129307]
[1767823375941,6.27868667,136.01,135.96,0.32129307]
[1767823376142,6.27868667,136.0,135.96,0.32129307]
[1767823376341,0.32622735,136.02,135.96,6.94729307]
[1767823376542,6.28105949,136.01,135.96,6.94729307]
[1767823376744,6.28105949,136.0,135.96,6.94729307]
[1767823376943,0.32622735,136.02,135.96,6.94729307]
[1767823377141,6.28105949,136.01,135.96,6.94729307]
[1767823377344,6.28105949,136.0,135.96,6.94729307]
[1767823377644,5.949e-05,135.99,135.96,6.94729307]
[1767823377844,0.32622735,136.02,135.96,6.94729307]
[1767823379352,0.32622735,136.02,135.97,6.6255]
[1767823380254,93.86842735,136.04,135.98,6.94629307]
[1767823381047,87.24622735,136.04,135.99,6.6245]
[1767823381247,0.32622735,136.04,135.99,6.6245]
[1767823384451,0.32622735,136.04,135.99,6.95025154]
[1767823389457,6.21064002,136.03,135.99,6.95025154]
[1767823389657,6.21064002,136.02,135.99,6.95025154]
[1767823389857,0.32622735,136.04,135.99,6.95025154]
[1767823389858,6.21064002,136.01,135.99,6.95025154]
[1767823390058,0.32622735,136.04,135.99,6.95025154]
[1767823390258,6.21141509,136.03,135.99,6.95025154]
[1767823390454,6.21141509,136.02,135.99,6.95025154]
[1767823390655,1.509e-05,136.01,135.99,6.95025154]
[1767823390857,0.32622735,136.04,135.99,6.95025154]
[1767823391058,87.24922887,136.06,136.0,0.32575154]
[1767823391456,0.32922887,136.05,136.0,0.32575154]
[1767823394160,86.92,136.06,136.01,0.32575154]
[1767823394462,0.32922887,136.07,136.01,0.32575154]
[1767823395449,0.32922887,136.07,136.01,6.94935154]
[1767823395661,87.24922887,136.09,136.02,0.32575154]
[1767823396364,93.86912887,136.09,136.02,6.94835154]
[1767823398266,6.6202,136.08,136.02,6.94835154]
[1767823400361,0.32922887,136.08,136.02,0.32575154]
[1767823400577,0.32922887,136.06,136.0,6.6236]
[1767823401567,6.95042887,136.06,136.0,6.6236]
[1767823402170,0.32922887,136.05,135.99,6.95035154]
[1767823402562,6.12932882,136.04,135.99,6.95035154]
[1767823402871,0.32922887,136.05,135.99,6.95035154]
[1767823402872,6.12932882,136.03,136.0,6.624]
[1767823403062,2.882e-05,136.02,136.0,6.624]
[1767823403371,0.32922887,136.05,136.0,6.624]
[1767823403766,0.32922887,136.04,135.97,0.32575154]
[1767823405571,6.95152887,136.04,135.98,0.32575154]
[1767823406169,6.6223,136.04,135.99,0.32575154]
[1767823406371,9.1095819,136.06,135.99,0.32575154]
[1767823406565,2.4879819,136.06,135.99,0.32575154]
[1767823406766,0.32922887,136.05,135.99,0.32575154]
[1767823407572,6.95112887,136.05,135.99,0.32575154]
[1767823410174,6.95112887,136.05,135.99,6.95015154]
[1767823414975,6.01770134,136.04,135.99,6.95015154]
[1767823415280,6.01770134,136.03,135.99,6.95015154]
[1767823415474,6.95112887,136.05,135.99,6.95015154]
[1767823415672,6.01823721,136.04,135.99,6.95015154]
[1767823415873,6.01823721,136.03,135.99,6.95015154]
[1767823416172,6.95112887,136.05,135.99,6.95015154]
[1767823416373,6.01856584,136.04,135.99,6.95015154]
[1767823416672,6.01856584,136.03,135.99,6.95015154]
[1767823416877,6.95112887,136.05,135.99,6.95015154]
[1767823417080,6.01882189,136.04,135.99,6.95015154]
[1767823417366,6.01882189,136.03,135.99,6.95015154]
[1767823417579,6.95112887,136.05,135.99,6.95015154]
[1767823417777,6.01946533,136.04,135.99,6.95015154]
[1767823417983,6.01946533,136.03,135.99,6.95015154]
[1767823418182,6.01993306,136.02,135.99,6.95015154]
[1767823418380,6.95112887,136.05,135.99,6.95015154]
[1767823418580,6.02018648,136.04,135.99,6.95015154]
[1767823418780,6.02018648,136.03,135.99,6.95015154]
[1767823418978,6.02018648,136.02,135.99,6.95015154]
[1767823419275,6.95112887,136.05,135.99,6.95015154]
[1767823419470,6.02098367,136.04,135.99,6.95015154]
[1767823419674,6.02098367,136.03,135.99,6.95015154]
[1767823419875,6.02098367,136.02,135.99,6.95015154]
[1767823420075,6.95112887,136.05,135.99,6.95015154]
[1767823420274,6.0216173,136.04,135.99,6.95015154]
[1767823420474,6.0216173,136.03,135.99,6.95015154]
[1767823420678,6.0216173,136.02,135.99,6.95015154]
[1767823420885,6.95112887,136.05,135.99,6.95015154]
[1767823421078,6.02186218,136.04,135.99,6.95015154]
[1767823421279,6.02186218,136.03,135.99,6.95015154]
[1767823421484,6.02282535,136.02,135.99,6.95015154]
[1767823421681,6.95112887,136.05,135.99,6.95015154]
[1767823421875,6.02282535,136.04,135.99,6.95015154]
[1767823422075,6.02282535,136.03,135.99,6.95015154]
[1767823422276,6.02282535,136.02,135.99,6.95015154]
[1767823422570,6.95112887,136.05,135.99,6.95015154]
[1767823422779,6.02388529,136.04,135.99,6.95015154]
[1767823422979,6.02388529,136.03,135.99,6.95015154]
[1767823423280,6.02388529,136.02,135.99,6.95015154]
[1767823423482,6.95112887,136.05,135.99,6.95015154]
[1767823423683,6.02509912,136.04,135.99,6.95015154]
[1767823423882,6.02509912,136.03,135.99,6.95015154]
[1767823424082,6.02509912,136.02,135.99,6.95015154]
[1767823424286,6.95112887,136.05,135.99,6.95015154]
[1767823424584,12.64852469,136.04,135.99,6.95015154]
[1767823424785,6.02642469,136.03,135.99,6.95015154]
[1767823425084,6.02642469,136.02,135.99,6.95015154]
[1767823425384,6.6221,136.04,135.99,6.95015154]
[1767823425585,6.02739181,136.03,135.99,6.95015154]
[1767823425884,6.02739181,136.02,135.99,6.95015154]